bitfinex/quotes_ETHUSD_20251011
["timestamp","ask_amount","ask_price","bid_price","bid_amount"]
[1760215080942,0.4277,3697.7,3696.1,0.002]
[1760215081146,0.6336,3696.9,3696.1,0.002]
[1760215081318,0.65231937,3697.6,3696.1,0.002]
[1760215081522,3.3390813,3696.2,3696.1,0.002]
[1760215081752,0.6336,3696.2,3696.1,0.002]
[1760215081932,1.0613,3696.2,3696.1,0.002]
[1760215082138,3.7667813,3696.2,3696.1,0.002]
[1760215083421,3.78582264,3696.2,3696.1,0.002]
[1760215083934,3.35854724,3695.9,3693.2,2.70767022]
[1760215084262,3.58294724,3695.9,3693.5,2.70745328]
[1760215084430,3.98940091,3695.9,3692.8,0.188]
[1760215084763,3.98940091,3695.9,3693.4,0.4487]
[1760215085083,1.30291704,3695.9,3693.4,0.4487]
[1760215085278,1.2837,3695.9,3694.0,0.4487]
[1760215085480,1.2837,3695.9,3693.5,0.4487]
[1760215085481,3.98940091,3695.9,3693.5,0.4487]
[1760215086154,3.98940091,3695.9,3693.9,2.70709595]
[1760215086458,3.98940091,3695.9,3693.8,2.70723794]
[1760215086658,3.98940091,3695.9,3694.0,2.70702539]
[1760215086842,3.98940091,3695.9,3694.3,2.70683161]
[1760215086843,1.2837,3695.9,3694.3,2.70683161]
[1760215087044,0.6501,3695.9,3694.1,0.215]
[1760215087242,3.35580091,3695.9,3693.5,0.4487]
[1760215087577,3.98940091,3695.9,3693.8,2.70722939]
[1760215087788,4.00853009,3695.9,3693.5,2.3687]
[1760215088066,4.00853009,3695.9,3693.5,0.4487]
[1760215088265,4.00853009,3695.9,3693.5,3.15612741]
[1760215088471,4.00853009,3695.9,3693.6,2.84257169]
[1760215088633,3.35889868,3695.5,3692.1,0.188]
[1760215088836,3.35889868,3695.5,3692.2,0.02708412]
[1760215088837,5.25959377,3695.5,3692.2,0.02708412]
[1760215089037,5.70462797,3695.5,3693.2,2.70767411]
[1760215089676,5.70462797,3695.5,3692.9,0.4487]
[1760215089677,5.70462797,3695.5,3692.9,2.7078984]
[1760215089974,5.70462797,3695.5,3693.0,2.70780914]
[1760215090180,5.70462797,3695.5,3692.5,0.4487]
[1760215090478,5.70462797,3695.5,3692.4,1.92]
[1760215090479,0.6336,3695.4,3693.0,0.4487]
[1760215090680,0.6336,3694.7,3693.0,0.4487]
[1760215090835,0.4257,3695.3,3693.5,2.70740996]
[1760215090836,0.6336,3695.2,3693.5,2.70740996]
[1760215091036,3.13190564,3695.3,3693.7,2.70724587]
[1760215091262,0.4257,3695.3,3693.6,3.15602948]
[1760215091565,0.6336,3695.0,3693.6,0.4487]
[1760215091768,0.6336,3695.0,3693.8,1.92]
[1760215091966,0.4257,3694.9,3693.1,2.70769312]
[1760215092134,0.4257,3694.9,3693.2,0.4487]
[1760215092330,0.6336,3695.1,3693.2,0.4487]
[1760215092535,0.2244,3695.9,3693.4,1.92]
[1760215092536,0.4257,3695.5,3693.4,1.92]
[1760215092763,0.4257,3695.5,3693.6,1.92]
[1760215092966,0.6336,3694.8,3693.5,1.92]
[1760215093173,0.2247,3696.4,3694.7,0.215]
[1760215093468,0.4253,3696.5,3695.1,2.70625094]
[1760215093631,0.2247,3696.9,3695.8,2.70577344]
[1760215093837,0.4253,3697.7,3696.4,2.70533125]
[1760215094148,0.6336,3697.6,3696.3,2.70538435]
[1760215094478,0.4253,3697.7,3696.4,2.7053258]
[1760215094836,0.4442,3698.6,3696.5,0.4487]
[1760215095104,0.4442,3698.6,3696.9,2.70495181]
[1760215095431,0.001,3699.1,3696.2,0.1789]
[1760215095432,2.7044221,3699.1,3697.5,2.70452943]
[1760215095634,2.7044221,3699.1,3697.0,0.47574895]
[1760215095635,0.4428,3699.1,3697.6,2.73148291]
[1760215096035,0.4428,3699.1,3697.7,2.70434332]
[1760215096545,0.4428,3699.1,3697.5,2.70453008]
[1760215096747,0.001,3699.1,3697.4,0.4487]
[1760215096947,0.001,3699.1,3698.2,2.70401294]
[1760215097182,0.001,3699.1,3698.3,0.02703945]
[1760215097475,0.001,3699.1,3699.0,2.83233336]
[1760215097772,0.001,3699.5,3699.0,0.1289]
[1760215097977,0.001,3699.5,3698.3,1.92]
[1760215097978,0.001,3699.5,3698.4,0.1279]
[1760215098396,2.70356881,3698.9,3697.6,0.4487]
[1760215098551,0.4402,3699.1,3697.3,2.83255435]
[1760215098737,0.4402,3699.1,3695.5,2.70598744]
[1760215098738,1.0738,3699.0,3697.4,0.02704603]
[1760215098968,0.001,3699.5,3697.5,0.4487]
[1760215099282,0.001,3699.5,3699.4,2.70314104]
[1760215099499,0.001,3699.5,3697.7,1.92]
[1760215099703,0.001,3699.5,3698.4,0.4487]
[1760215099903,0.001,3699.5,3697.8,0.4487]
[1760215100070,0.001,3699.5,3697.9,0.02704237]
[1760215100412,0.001,3699.5,3698.0,2.3687]
[1760215100617,0.001,3699.5,3697.6,1.92]
[1760215100911,0.6336,3699.4,3698.1,0.02704091]
[1760215101500,0.001,3699.5,3698.1,0.47574091]
[1760215101680,0.001,3699.5,3698.1,0.4487]
[1760215101867,0.001,3699.5,3698.4,2.70380902]
[1760215102070,0.001,3699.5,3698.1,0.4487]
[1760215102265,0.001,3699.5,3698.2,2.70401817]
[1760215102510,0.001,3699.5,3698.3,0.02703945]
[1760215102712,0.001,3699.5,3698.6,2.70365866]
[1760215103008,0.001,3699.5,3698.4,0.4643]
[1760215103206,0.001,3699.5,3698.2,2.7039815]
[1760215103410,0.001,3699.5,3698.0,1.92]
[1760215103609,0.6346,3699.5,3698.0,2.70410011]
[1760215103909,3.33766962,3699.5,3698.1,0.02704091]
[1760215104113,0.6346,3699.5,3698.1,0.02704091]
[1760215104318,2.704076,3699.5,3698.1,0.02704091]
[1760215104466,3.13554163,3699.4,3697.6,2.70443142]
[1760215104673,0.001,3699.5,3697.7,0.49134383]
[1760215104909,0.001,3699.5,3697.7,0.4643]
[1760215105118,0.6346,3699.5,3698.1,2.7040904]
[1760215105318,3.3376781,3699.5,3698.2,0.02704018]
[1760215105609,3.33772776,3699.5,3697.9,2.70421418]
[1760215105818,2.70323512,3699.3,3697.8,1.92]
[1760215106112,0.6346,3699.5,3697.8,1.92]
[1760215106272,0.001,3699.5,3698.4,2.70381127]
[1760215106522,0.001,3699.5,3698.4,0.4643]
[1760215106760,0.001,3699.5,3698.4,3.16810587]
[1760215106921,0.001,3699.5,3698.5,2.70373945]
[1760215107124,0.001,3699.5,3698.4,0.4643]
[1760215107443,0.001,3699.5,3698.6,2.70366692]
[1760215107759,0.001,3699.5,3698.4,0.4643]
[1760215108259,0.001,3699.5,3698.1,1.92]
[1760215108416,0.001,3699.5,3698.0,1.92]
[1760215108617,0.001,3699.5,3698.1,0.4643]
[1760215108823,0.001,3699.5,3698.2,4.62399664]
[1760215109031,0.1344,3699.4,3698.8,0.1344]
[1760215110195,2.70316594,3699.4,3698.3,0.02703945]
[1760215110406,0.1344,3698.9,3698.3,0.16143945]
[1760215110611,0.1344,3698.9,3698.3,0.1344]
[1760215110767,0.1344,3698.9,3698.4,0.02703871]
[1760215111101,0.001,3699.5,3698.5,0.4643]
[1760215111273,0.1344,3699.4,3698.8,0.1344]
[1760215111598,2.83754631,3699.4,3698.8,0.1344]
[1760215111804,0.1344,3699.4,3698.8,0.1344]
[1760215112100,0.6336,3699.3,3697.6,0.002]
[1760215112262,0.1344,3698.9,3698.3,0.1344]
[1760215112782,0.1344,3699.3,3698.6,0.1344]
[1760215113399,0.1344,3698.9,3698.3,0.1344]
[1760215115306,2.83792571,3698.9,3698.3,0.1344]
[1760215115599,2.70342837,3699.1,3697.7,0.4643]
[1760215115801,0.001,3699.5,3697.7,0.4643]
[1760215116307,0.001,3699.5,3698.3,2.7039137]
[1760215116675,0.001,3699.5,3698.4,0.49133871]
[1760215116999,0.001,3699.5,3698.6,1.92]
[1760215117186,0.001,3699.5,3698.4,2.3843]
[1760215117389,0.001,3699.5,3698.4,0.4643]
[1760215117588,2.70314104,3699.4,3697.8,0.4643]
[1760215117772,0.001,3699.5,3697.9,0.4643]
[1760215117980,2.70314104,3699.4,3697.9,0.4643]
[1760215118308,2.70407694,3699.5,3697.9,0.4643]
[1760215118604,2.70407694,3699.5,3697.9,2.3843]
[1760215118811,2.7031477,3699.4,3698.0,2.70416441]
[1760215119311,0.001,3699.5,3698.2,2.70400091]
[1760215119465,0.001,3699.5,3698.4,2.70380979]
[1760215119899,0.001,3699.5,3698.5,0.4643]
[1760215120679,0.001,3699.5,3698.5,3.16803665]
[1760215120878,0.001,3699.5,3698.5,0.4643]
[1760215121190,0.001,3699.5,3697.9,0.4338]
[1760215121796,0.001,3699.5,3698.0,0.02704164]
[1760215121977,0.001,3699.9,3698.2,2.70401817]
[1760215122168,0.001,3699.9,3699.3,1.92]
[1760215122367,0.001,3699.9,3698.3,2.38083945]
[1760215122368,0.001,3699.9,3699.4,2.70313575]
[1760215122607,0.001,3699.9,3699.4,2.70314104]
[1760215122772,0.001,3699.9,3699.5,0.4338]
[1760215123366,0.001,3699.9,3699.6,0.4338]
[1760215123567,0.001,3699.9,3698.2,1.92]
[1760215123771,0.001,3699.9,3697.7,2.70436246]
[1760215123772,0.001,3699.9,3699.1,1.92]
[1760215123971,0.001,3699.9,3699.0,2.3538]
[1760215124186,0.001,3699.9,3699.0,0.4338]
[1760215124382,0.001,3699.9,3699.0,3.13717243]
[1760215124603,0.001,3699.9,3699.0,0.4338]
[1760215124906,0.001,3699.9,3698.2,0.4338]
[1760215125217,2.70321135,3699.4,3698.2,0.4338]
[1760215125405,0.2329,3699.9,3698.2,0.4338]
[1760215125406,0.4307,3699.8,3698.2,0.4338]
[1760215125606,0.1344,3699.4,3698.8,0.1344]
[1760215125996,0.001,3699.9,3698.9,0.02703506]
[1760215126209,0.001,3699.9,3699.3,0.1344]
[1760215127492,0.001,3699.9,3699.8,0.1344]
[1760215127695,0.001,3699.9,3699.8,2.86427728]
[1760215127912,0.001,3699.9,3699.8,3.29807728]
[1760215128322,0.001,3699.9,3699.8,0.5682]
[1760215129088,0.001,3699.9,3699.8,3.29807728]
[1760215129505,0.001,3699.9,3699.8,0.5682]
[1760215129914,0.001,3699.9,3697.9,2.70418969]
[1760215129915,0.001,3699.9,3699.0,0.4338]
[1760215130114,0.001,3699.8,3699.0,3.13720769]
[1760215130330,0.001,3699.8,3699.0,0.4338]
[1760215130625,0.001,3699.8,3698.7,0.4338]
[1760215130803,0.001,3699.8,3698.7,3.13744865]
[1760215130986,0.001,3699.8,3698.7,0.4338]
[1760215131589,0.001,3699.8,3698.8,0.02703579]
[1760215131785,0.001,3699.9,3699.7,2.70292185]
[1760215132028,0.001,3699.9,3699.8,3.1366488]
[1760215132225,0.001,3699.9,3699.8,0.4338]
[1760215132636,0.001,3699.9,3699.8,5.08367728]
[1760215133006,0.001,3699.9,3699.8,5.0566488]
[1760215133533,0.001,3699.9,3699.8,0.4338]
[1760215134232,0.001,3699.9,3699.8,3.1366488]
[1760215134436,0.001,3699.9,3699.8,0.4338]
[1760215134935,0.001,3699.9,3699.8,5.0566488]
[1760215135757,0.001,3700.2,3700.1,2.70262965]
[1760215135969,0.001,3700.2,3700.1,4.74752965]
[1760215136253,0.001,3700.2,3700.1,5.18102965]
[1760215138557,0.001,3700.2,3700.1,11.66271465]
[1760215138717,0.001,3700.2,3700.1,5.18102965]
[1760215139148,0.001,3700.2,3700.1,8.62134765]
[1760215139559,0.001,3700.2,3700.1,18.83806465]
[1760215139760,0.4376,3704.5,3700.4,0.6336]
[1760215139915,0.1344,3704.0,3701.1,1.92]
[1760215140120,0.1344,3704.0,3701.0,20.21113345]
[1760215140121,0.1344,3704.0,3703.4,0.1344]
[1760215140539,2.69992525,3703.9,3702.9,0.4335]
[1760215140861,2.69955431,3704.4,3703.0,0.02700513]
[1760215141064,0.001,3704.5,3703.1,0.4335]
[1760215141765,2.69981367,3704.0,3703.1,0.4335]
[1760215141932,2.69981367,3704.0,3702.6,2.70079575]
[1760215141933,2.70020854,3703.5,3702.5,0.6485]
[1760215142327,0.6336,3704.1,3702.5,0.4335]
[1760215142530,0.6336,3703.8,3701.5,0.215]
[1760215142729,2.70115941,3702.2,3700.9,0.215]
[1760215142961,2.70116889,3702.2,3701.0,0.4335]
[1760215143162,2.70123815,3702.1,3701.0,0.4335]
[1760215143330,0.432,3702.4,3700.9,0.215]
[1760215143531,0.432,3702.4,3700.6,0.4335]
[1760215143844,0.6336,3702.1,3700.1,0.1249]
[1760215144028,2.70148913,3701.7,3700.1,0.1249]
[1760215144370,0.4298,3702.5,3700.2,0.46052556]
[1760215144570,2.70074538,3702.7,3701.2,2.70176006]
[1760215144728,2.70074538,3702.7,3701.3,3.16226375]
[1760215144929,2.70066846,3702.8,3701.3,3.16226375]
[1760215145165,0.4298,3703.1,3701.3,0.4335]
[1760215145445,2.70058439,3703.0,3701.6,2.7015264]
[1760215145643,2.70019959,3703.5,3702.0,2.70117473]
[1760215145829,2.70019959,3703.5,3702.1,3.16161734]
[1760215146051,2.69984593,3704.0,3702.1,0.46051169]
[1760215146240,2.69984593,3704.0,3702.3,2.70101398]
[1760215146442,2.69963824,3704.2,3702.4,0.0270095]
[1760215146655,2.70067471,3702.8,3701.7,0.4335]
[1760215146961,20.21113345,3703.9,3701.7,0.4335]
[1760215146962,2.70075133,3702.7,3701.7,0.4335]
[1760215147465,2.70065094,3702.9,3701.7,0.4335]
[1760215147632,2.70076227,3702.7,3701.7,0.4335]
[1760215148373,2.70051464,3703.0,3701.7,0.4335]
[1760215148668,0.4212,3704.2,3701.8,0.02701388]
[1760215148877,0.6176,3705.1,3703.0,2.70044656]
[1760215149079,2.69958423,3704.3,3702.9,1.92]
[1760215149236,2.6994933,3704.4,3703.0,0.4335]
[1760215149431,2.6994933,3704.4,3703.0,3.13395475]
[1760215149639,2.70019828,3704.9,3703.0,0.4335]
[1760215149838,2.69983688,3704.0,3703.0,0.4335]
[1760215150034,0.4222,3704.5,3700.9,2.70199808]
[1760215150264,0.6336,3704.2,3702.3,1.92]
[1760215150462,2.70036446,3703.3,3702.2,0.4335]
[1760215150662,0.1344,3703.5,3702.9,0.1344]
[1760215150862,0.1344,3703.5,3699.0,0.002]
[1760215150863,0.6336,3703.4,3701.6,0.4335]
[1760215151075,0.6336,3703.2,3701.6,0.4335]
[1760215151274,2.70039,3703.2,3701.6,0.4335]
[1760215151482,0.6336,3703.0,3701.6,0.4335]
[1760215151782,0.6336,3703.0,3700.8,2.70210373]
[1760215151783,0.6336,3703.0,3700.6,1.92]
[1760215151937,0.6336,3702.7,3701.1,0.4335]
[1760215152142,0.6336,3702.7,3700.4,0.4335]
[1760215152143,0.6336,3702.5,3700.4,0.4335]
[1760215152336,0.4212,3702.4,3700.4,0.4335]
[1760215152648,0.4212,3702.4,3699.9,0.215]
[1760215152649,2.70191327,3701.1,3699.9,0.215]
[1760215152979,0.6336,3702.2,3699.9,0.215]
[1760215152980,2.701368,3701.9,3700.2,2.3535]
[1760215153164,2.70152161,3701.7,3700.3,0.4335]
[1760215153367,0.6336,3702.3,3700.6,2.70219494]
[1760215153551,3.11827878,3703.2,3700.8,2.70211846]
[1760215153872,2.7006268,3702.9,3700.9,0.4335]
[1760215154042,2.70109664,3702.2,3700.9,0.4335]
[1760215154239,0.4179,3702.6,3700.9,0.4335]
[1760215154648,0.6336,3702.3,3700.9,0.4335]
[1760215155053,2.70110311,3702.2,3700.9,0.4335]
[1760215155265,2.70117898,3702.1,3700.9,0.4335]
[1760215155473,2.70130446,3702.0,3700.9,0.4335]
[1760215155672,0.4179,3702.6,3700.9,0.4335]
[1760215155673,2.70029433,3703.3,3701.0,0.02701972]
[1760215155880,2.70064171,3702.9,3701.2,2.70175852]
[1760215156037,0.6336,3703.1,3701.3,0.46051753]
[1760215156241,2.7012335,3702.1,3700.5,1.92]
[1760215156470,2.70117124,3702.1,3700.5,1.92]
[1760215156743,0.6336,3703.1,3700.6,0.4335]
[1760215156973,0.4179,3703.2,3700.7,0.02702191]
[1760215157183,0.2214,3703.8,3700.9,1.92]
[1760215157184,1.92,3703.6,3700.9,1.92]
[1760215157476,20.21113345,3704.4,3702.2,1.92]
[1760215157477,0.4179,3704.1,3702.2,1.92]
[1760215157641,2.70010084,3703.6,3702.2,3.13457634]
[1760215157847,2.70013506,3703.6,3702.3,0.02701023]
[1760215158055,0.4179,3704.1,3702.3,0.02701023]
[1760215158257,2.69991737,3703.9,3702.4,0.4335]
[1760215158443,0.01664581,3704.4,3702.4,0.4335]
[1760215158645,2.69977013,3704.1,3702.4,0.4335]
[1760215158867,2.69978401,3704.0,3702.4,0.4335]
[1760215159065,2.69978401,3704.0,3699.4,0.23435879]
[1760215159066,2.70059858,3702.9,3701.9,0.4335]
[1760215159268,2.69993975,3703.8,3701.9,0.4335]
[1760215159442,2.3589,3704.5,3702.1,1.92]
[1760215159646,0.6336,3704.1,3701.9,0.4335]
[1760215159882,20.22780841,3704.3,3699.0,0.002]
[1760215159883,0.6336,3703.4,3699.9,0.215]
[1760215160097,0.6336,3703.0,3701.3,0.4335]
[1760215160260,2.70137572,3701.9,3700.2,2.70255164]
[1760215160590,2.70154496,3701.6,3700.3,0.4335]
[1760215160888,2.70154496,3701.6,3701.2,0.1344]
[1760215161108,0.1344,3701.9,3701.2,0.1344]
[1760215161389,0.1344,3701.6,3700.9,0.1344]
[1760215161770,0.4379,3703.1,3701.0,0.02701972]
[1760215162081,0.6507124,3703.0,3700.4,0.4335]
[1760215162268,0.2012,3703.3,3701.1,0.1344]
[1760215162269,2.83592773,3701.7,3701.1,0.1344]
[1760215162450,0.1344,3701.7,3701.1,0.1344]
[1760215163190,2.70110044,3702.2,3701.2,0.02701826]
[1760215163357,0.1344,3702.0,3701.4,0.1344]
[1760215163560,2.70155847,3701.6,3701.1,0.1344]
[1760215163760,0.1344,3701.7,3701.1,0.1344]
[1760215164088,2.70175944,3701.3,3700.1,0.1249]
[1760215164266,0.6336,3701.9,3700.2,0.4353]
[1760215164453,0.1344,3700.9,3700.3,0.1344]
[1760215164654,2.70211846,3700.8,3700.3,0.1344]
[1760215165353,0.1344,3700.9,3700.3,0.1344]
[1760215165689,2.70232134,3700.6,3700.3,0.1344]
[1760215165860,2.70219147,3700.7,3700.3,0.1344]
[1760215166062,0.1344,3700.9,3700.3,0.1344]
[1760215166063,2.70241055,3700.4,3700.3,0.1344]
[1760215166289,2.70277575,3699.9,3699.8,0.002]
[1760215166538,3.33637575,3699.9,3699.8,0.002]
[1760215166797,3.99757575,3699.9,3699.8,0.002]
[1760215168857,3.36397575,3699.9,3699.8,0.002]
[1760215169066,4.01553487,3699.9,3699.8,0.002]
[1760215169293,5.93553487,3699.9,3699.8,0.002]
[1760215171301,5.91757575,3699.9,3699.8,0.002]
[1760215171823,5.25637575,3699.9,3699.8,0.002]
[1760215172033,0.6612,3700.8,3699.8,0.002]
[1760215172203,0.6788962,3700.8,3699.8,0.002]
[1760215172398,0.4443,3700.8,3699.8,0.002]
[1760215172734,0.01775461,3700.6,3699.8,0.002]
[1760215172912,3.33637575,3699.9,3699.8,0.002]
[1760215173082,3.99757575,3699.9,3699.8,0.002]
[1760215173285,0.4443,3700.9,3699.8,0.002]
[1760215173729,2.70271592,3700.0,3699.8,0.002]
[1760215173934,2.70249741,3700.3,3699.8,0.002]
[1760215174091,2.70264843,3700.1,3699.8,0.002]
[1760215174291,0.6336,3700.5,3699.8,0.002]
[1760215174601,2.70255661,3700.2,3699.8,0.002]
[1760215174919,2.70211846,3700.8,3699.8,0.002]
[1760215175216,2.70233752,3700.5,3699.8,0.002]
[1760215175425,2.70242187,3700.4,3699.8,0.002]
[1760215175581,0.6336,3700.8,3699.8,0.002]
[1760215175781,0.6336,3700.6,3699.8,0.002]
[1760215175981,2.70277575,3699.9,3699.8,0.002]
[1760215176224,3.33637575,3699.9,3699.8,0.002]
[1760215176408,3.78067575,3699.9,3699.8,0.002]
[1760215176609,3.78067575,3699.9,3699.5,0.002]
[1760215176610,24.00979754,3699.9,3699.5,0.002]
[1760215176818,3.35464169,3699.6,3699.5,0.002]
[1760215176985,3.35464169,3699.6,3699.0,0.002]
[1760215176986,0.6336,3699.4,3699.0,0.002]
[1760215177321,3.33696027,3699.1,3699.0,0.002]
[1760215177726,3.78126027,3699.1,3699.0,0.002]
[1760215178390,3.07044024,3700.6,3699.0,0.002]
[1760215178600,0.4443,3700.3,3699.0,0.4373]
[1760215178826,0.4443,3700.3,3699.0,0.002]
[1760215179033,2.70277153,3700.0,3699.0,0.002]
[1760215179413,2.70262965,3700.1,3699.0,0.002]
[1760215179613,2.70285278,3699.8,3699.0,0.002]
[1760215180025,2.70293184,3699.7,3699.0,0.002]
[1760215180225,2.70277575,3699.9,3699.0,0.002]
[1760215180440,3.33622335,3700.2,3699.0,0.002]
[1760215180622,2.70263778,3700.1,3699.0,0.002]
[1760215180791,0.4503,3700.9,3699.1,0.4515]
[1760215180997,0.001,3702.1,3699.3,2.70321412]
[1760215180998,2.70212852,3700.8,3699.3,2.70321412]
[1760215181196,2.70218006,3700.8,3699.4,0.4515]
[1760215181425,2.70205397,3700.9,3699.4,0.4515]
[1760215181606,2.70212639,3700.8,3699.4,0.4515]
[1760215181938,0.01752099,3701.4,3699.4,0.4515]
[1760215181939,2.70168665,3701.4,3700.0,2.70268414]
[1760215182108,0.001,3701.7,3700.1,0.60342629]
[1760215182291,0.001,3701.7,3700.8,2.70204621]
[1760215182494,0.001,3701.7,3700.9,0.02702045]
[1760215182799,0.001,3701.7,3701.2,2.70175911]
[1760215183104,0.001,3701.7,3700.5,2.3715]
[1760215183323,0.001,3701.7,3701.3,2.7017461]
[1760215183630,0.001,3701.7,3701.1,0.4515]
[1760215183996,0.001,3701.7,3700.5,0.4515]
[1760215184212,0.001,3701.7,3701.6,4.62153447]
[1760215184492,0.001,3701.7,3701.6,1.92]
[1760215185124,0.001,3701.7,3701.0,0.4515]
[1760215185356,0.001,3701.7,3700.4,0.4515]
[1760215185660,2.70176289,3701.3,3699.9,3.15420449]
[1760215185832,2.70176289,3701.3,3700.0,1.92]
[1760215186238,0.001,3700.8,3699.9,0.4515]
[1760215186559,0.001,3700.8,3700.2,0.4515]
[1760215186726,0.001,3700.8,3700.7,0.1344]
[1760215187458,0.001,3700.8,3700.7,0.5859]
[1760215187661,0.001,3700.8,3700.7,0.4515]
[1760215189552,0.001,3701.2,3701.1,2.70189943]
[1760215189726,0.001,3701.6,3701.5,4.62160745]
[1760215190073,2.69969108,3704.2,3701.1,4.64891842]
[1760215190074,3.16190889,3704.3,3702.2,2.70103813]
[1760215190226,2.69999377,3703.8,3702.4,2.7009276]
[1760215190427,2.69978633,3704.0,3702.6,2.70080483]
[1760215190645,0.4466,3704.2,3702.5,1.92]
[1760215190945,2.69992874,3703.9,3702.5,2.70087762]
[1760215191127,2.69978401,3704.0,3702.3,0.4515]
[1760215191334,0.001,3704.5,3702.3,0.4515]
[1760215191866,0.4466,3704.4,3702.5,1.92]
[1760215192166,2.69986914,3703.9,3702.5,4.6208158]
[1760215192536,0.6336,3704.3,3702.7,1.92]
[1760215192758,2.69964851,3704.2,3702.8,3.15095535]
[1760215192980,0.001,3704.5,3702.3,1.92]
[1760215192981,0.001,3704.5,3702.9,0.02700586]
[1760215193286,0.001,3704.5,3703.6,2.70005556]
[1760215193463,0.001,3704.5,3703.6,3.15035556]
[1760215193647,0.001,3704.5,3703.9,2.69981855]
[1760215193852,0.001,3704.5,3704.0,0.02699784]
[1760215194184,0.001,3704.5,3703.6,0.4503]
[1760215194396,0.001,3704.5,3704.0,0.4503]
[1760215194750,0.001,3704.5,3704.1,0.4503]
[1760215195270,0.001,3704.5,3702.6,2.70077523]
[1760215195603,0.001,3704.5,3703.3,0.4503]
[1760215195745,0.001,3704.5,3703.3,3.15058168]
[1760215196081,0.001,3704.5,3703.3,0.4503]
[1760215196289,0.001,3704.5,3703.6,2.70006124]
[1760215196621,0.001,3704.5,3703.4,0.4503]
[1760215196751,0.001,3704.5,3703.4,2.3703]
[1760215197185,0.001,3704.5,3703.6,1.92]
[1760215197550,0.001,3704.5,3703.1,0.4503]
[1760215197749,2.69965538,3704.2,3703.8,0.1344]
[1760215197956,2.8339007,3704.4,3703.8,0.1344]
[1760215198198,0.1344,3704.4,3703.8,0.1344]
[1760215198377,2.83390887,3704.4,3703.8,0.1344]
[1760215198858,0.001,3704.5,3702.5,1.92]
[1760215199059,0.001,3704.5,3704.4,0.1344]
[1760215199461,0.001,3704.5,3704.4,0.5847]
[1760215199661,0.001,3704.5,3704.4,3.28419249]
[1760215199864,0.001,3704.5,3704.4,0.5847]
[1760215200375,0.001,3704.5,3704.4,0.4503]
[1760215200577,0.001,3704.5,3703.8,0.189]
[1760215200802,2.7004285,3704.5,3703.8,0.189]
[1760215201011,2.70045544,3704.5,3703.8,0.189]
[1760215201210,0.001,3704.5,3703.7,0.4503]
[1760215201382,0.001,3704.5,3703.4,0.4503]
[1760215201577,2.6996336,3704.3,3703.4,0.4503]
[1760215201811,0.001,3704.5,3703.8,1.92]
[1760215202014,0.001,3704.5,3704.3,2.69949317]
[1760215202209,0.001,3704.5,3704.1,2.69965191]
[1760215202410,0.001,3704.5,3704.2,1.92]
[1760215202612,0.001,3704.5,3704.2,0.4503]
[1760215202911,0.001,3704.5,3704.4,4.61949249]
[1760215203300,0.001,3705.3,3705.2,2.69890964]
[1760215203617,2.69764452,3707.0,3705.4,2.69876396]
[1760215203817,0.01562656,3707.9,3705.9,2.69833328]
[1760215203818,0.01565565,3707.9,3705.9,2.69833328]
[1760215204157,0.01565565,3707.9,3705.1,2.69898248]
[1760215204158,0.4342,3709.1,3706.0,0.4503]
[1760215204317,0.4342,3709.1,3706.1,0.212]
[1760215204615,0.2148,3709.7,3707.1,1.92]
[1760215204792,0.2148,3709.7,3707.2,0.4503]
[1760215204793,2.6963679,3708.7,3707.2,0.4503]
[1760215205116,2.69628216,3708.9,3707.2,0.4503]
[1760215205319,2.69613414,3709.1,3707.6,2.69714169]
[1760215205505,2.69622522,3708.9,3707.7,0.4503]
[1760215205921,0.001,3709.1,3707.7,3.14732406]
[1760215206088,0.001,3709.1,3708.1,2.69678829]
[1760215206423,0.001,3709.1,3708.2,2.69666245]
[1760215206623,0.001,3709.1,3707.9,0.4503]
[1760215206833,0.001,3709.1,3708.2,1.92]
[1760215206985,0.001,3709.1,3709.0,2.84804451]
[1760215207186,0.001,3709.5,3709.0,2.0719]
[1760215207384,0.001,3709.5,3709.1,0.4503]
[1760215207940,0.001,3709.5,3709.2,0.47725999]
[1760215208141,0.001,3709.5,3709.2,0.4503]
[1760215208342,0.001,3709.5,3709.4,2.69585377]
[1760215208545,0.001,3709.5,3709.2,3.14628249]
[1760215208546,0.001,3709.9,3709.8,4.6155631]
[1760215208902,0.001,3709.9,3709.8,2.3703]
[1760215209402,0.001,3709.9,3709.8,0.4503]
[1760215209900,0.001,3709.9,3709.8,3.1458631]
[1760215210101,0.001,3709.9,3709.8,5.2002631]
[1760215210306,0.001,3709.9,3709.8,2.5047]
[1760215210510,0.001,3709.9,3709.8,5.2002631]
[1760215210907,0.001,3709.9,3709.8,2.5047]
[1760215211341,0.001,3709.9,3709.8,5.0658631]
[1760215211850,0.001,3709.9,3709.8,2.3703]
[1760215212846,0.001,3709.9,3709.2,0.4503]
[1760215213949,0.001,3709.9,3708.0,0.1519]
[1760215214147,0.001,3709.9,3708.5,0.4503]
[1760215214357,2.6955631,3709.8,3708.2,1.92]
[1760215214512,0.001,3709.9,3708.1,0.4503]
[1760215214717,2.69578985,3709.5,3708.2,2.69669829]
[1760215215050,0.001,3709.9,3708.4,2.69658073]
[1760215215249,0.001,3709.9,3708.5,0.02696508]
[1760215215479,0.001,3709.9,3709.2,1.92]
[1760215215785,0.001,3709.9,3709.0,2.69609275]
[1760215215962,0.001,3709.9,3708.9,2.3703]
[1760215216165,0.001,3709.9,3709.3,1.92]
[1760215216363,0.001,3709.9,3709.0,3.14637353]